lending/lending_fUSD_20260104
["ID","MTS","AMOUNT","RATE_DAILY","PERIOD"]
[400389715,1767493839245,-500.0,0.00041096,31]
[400389716,1767493839255,-300.0,0.00041096,31]
[400389717,1767493839264,-500.0,0.00041096,31]
[400389718,1767493839274,-500.0,0.00041096,31]
[400389719,1767493839289,-500.0,0.00041096,31]
[400389720,1767493839300,-500.0,0.00041096,31]
[400389721,1767493839311,-500.0,0.00041096,31]
[400389722,1767493839320,-500.0,0.00041096,31]
[400389723,1767493839331,-500.0,0.00041096,31]
[400389724,1767493839342,-500.0,0.00041096,31]
[400389725,1767493839352,-500.0,0.00041096,31]
[400389726,1767493839362,-500.0,0.00041096,31]
[400389727,1767493839371,-500.0,0.00041096,31]
[400389728,1767493839381,-500.0,0.00041096,31]
[400389729,1767493839390,-500.0,0.00041096,31]
[400389730,1767493839399,-500.0,0.00041096,31]
[400389731,1767493839409,-500.0,0.00041096,31]
[400389732,1767493839418,-500.0,0.00041096,31]
[400389733,1767493839428,-500.0,0.00041096,31]
[400389734,1767493839437,-500.0,0.00041096,31]
[400389735,1767493839447,-500.0,0.00041096,31]
[400389736,1767493839457,-500.0,0.00041096,31]
[400389737,1767493839467,-500.0,0.00041096,31]
[400389738,1767493839477,-500.0,0.00041096,31]
[400389739,1767493839486,-500.0,0.00041096,31]
[400389740,1767493839496,-500.0,0.00041096,31]
[400389741,1767493839506,-500.0,0.00041096,31]
[400389742,1767493839515,-500.0,0.00041096,31]
[400389743,1767493839526,-500.0,0.00041096,31]
[400389744,1767493839535,-500.0,0.00041096,31]
[400389745,1767493839544,-500.0,0.00041096,31]
[400389748,1767493839557,-500.0,0.00041096,31]
[400389750,1767493839567,-598.97159467,0.00041096,31]
[400389751,1767493839577,-500.0,0.00041096,31]
[400389752,1767493839586,-500.0,0.00041096,31]
[400389753,1767493839596,-500.0,0.00041096,31]
[400389754,1767493839605,-500.0,0.00041096,31]
[400389755,1767493839614,-500.0,0.00041096,31]
[400389756,1767493839623,-500.0,0.00041096,31]
[400389757,1767493839632,-500.0,0.00041096,31]
[400389758,1767493839643,-500.0,0.00041096,31]
[400389759,1767493839651,-500.0,0.00041096,31]
[400389760,1767493839660,-500.0,0.00041096,31]
[400389761,1767493839669,-160.95923215,0.00041096,31]
[400389762,1767493840136,-83.97779866,0.00041096,31]
[400389763,1767493840340,-255.06296919,0.00041096,31]
[400389764,1767493840350,-500.0,0.00041096,31]
[400389765,1767493840359,-176.45502805,0.00041228,28]
[400389766,1767493840369,-1350.7836123,0.00041246,2]
[400389767,1767493840379,-1985.3668659,0.00041246,2]
[400389768,1767493840389,-597.09726225,0.00041442,14]
[400389769,1767493840399,-151.0,0.000415,120]
[400389770,1767493840408,-2386.43425585,0.00041554,15]
[400389771,1767493840418,-867.41605752,0.0004171,7]
[400389772,1767493840428,-151.0,0.00041719,120]
[400389773,1767493840438,-151.0,0.00041719,120]
[400389774,1767493840448,-387.927072,0.00041719,120]
[400389775,1767493840458,-387.927072,0.00041719,120]
[400389776,1767493840467,-387.927072,0.00041719,120]
[400389777,1767493840477,-387.927072,0.00041719,120]
[400389778,1767493840487,-5112.0,0.000419,30]
[400389779,1767493840497,-868.74945703,0.000419,2]
[400389780,1767493840506,-273.65745224,0.000419,120]
[400389781,1767493840515,-168.0,0.00041939,2]
[400389782,1767493840525,-237.94392219,0.00041999,120]
[400389783,1767493840535,-250.0,0.00042,45]
[400389784,1767493840544,-250.0,0.00042,45]
[400389785,1767493840557,-250.0,0.00042,45]
[400389786,1767493840567,-250.0,0.00042,45]
[400389787,1767493840577,-250.0,0.00042,45]
[400389788,1767493840586,-204.67162184,0.00042,120]
[400389789,1767493840597,-366.92,0.00042,2]
[400389790,1767493840607,-1246.81687456,0.00042,120]
[400389791,1767493840616,-418.99487624,0.00042,120]
[400389792,1767493840625,-233.88416499,0.00042,120]
[400389793,1767493840636,-168.57,0.00042004,2]
[400389794,1767493840646,-168.0,0.00042045,2]
[400389795,1767493840655,-176.45502805,0.00042174,28]
[400389796,1767493840664,-151.0,0.000422,120]
[400389797,1767493840674,-168.0,0.00042227,2]
[400389798,1767493840684,-328.71114864,0.00042276,120]
[400389799,1767493840694,-2386.43425585,0.00042277,15]
[400389800,1767493840704,-301.4005637,0.00042281,2]
[400389801,1767493840714,-442.9952267,0.00042281,2]
[400389802,1767493840724,-905.19113006,0.00042339,120]
[400389803,1767493840733,-150.01909753,0.00042434,39]
[400389804,1767493840743,-500.0,0.00042466,120]
[400389805,1767493840752,-152.0,0.0004253,3]
[400389806,1767493840762,-3877.0240086,0.000426,120]
[400389807,1767493840771,-500.0,0.00042603,120]
[400389808,1767493840781,-1000.0,0.00042626,14]
[400389809,1767493840790,-1000.0,0.00042639,14]
[400389810,1767493840799,-1000.0,0.00042643,14]
[400389811,1767493840809,-1000.0,0.00042689,14]
[400389812,1767493840820,-1000.0,0.0004269,14]
[400389813,1767493840830,-1000.0,0.00042694,14]
[400389814,1767493840839,-1000.0,0.00042694,14]
[400389815,1767493840848,-218.14965157,0.000427,30]
[400389816,1767493840858,-1000.0,0.00042704,14]
[400389817,1767493840868,-1000.0,0.00042704,14]
[400389818,1767493840877,-1000.0,0.00042717,14]
[400389819,1767493840887,-1000.0,0.00042718,14]
[400389820,1767493840897,-588.5749181,0.00042722,14]
[400389821,1767493840906,-1000.0,0.00042728,14]
[400389822,1767493840916,-1000.0,0.00042728,14]
[400389823,1767493840925,-150.0,0.00042731,14]
[400389824,1767493840935,-1000.0,0.00042734,14]
[400389825,1767493840944,-1000.0,0.00042735,14]
[400389826,1767493840954,-150.0,0.00042736,14]
[400389827,1767493840963,-500.0,0.0004274,120]
[400389828,1767493840972,-150.0,0.00042744,14]
[400389829,1767493840982,-1000.0,0.0004275,14]
[400389830,1767493840991,-150.0,0.00042767,14]
[400389831,1767493841002,-1000.0,0.00042768,14]
[400389832,1767493841011,-1000.0,0.00042774,14]
[400389833,1767493841021,-151.0,0.0004279,7]
[400389834,1767493841031,-150.0,0.00042799,14]
[400389835,1767493841041,-1000.0,0.00042818,14]
[400389836,1767493841050,-1000.0,0.00042819,14]
[400389837,1767493841060,-1000.0,0.00042829,14]
[400389838,1767493841070,-1000.0,0.00042858,14]
[400389839,1767493841080,-1000.0,0.00042859,14]
[400389840,1767493841090,-1000.0,0.00042859,14]
[400389841,1767493841100,-150.0,0.00042861,14]
[400389842,1767493841110,-1000.0,0.00042868,14]
[400389843,1767493841120,-150.0,0.0004287,14]
[400389844,1767493841129,-500.0,0.00042877,120]
[400389845,1767493841139,-1000.0,0.00042888,2]
[400389846,1767493841149,-151.0,0.00042888,120]
[400389847,1767493841159,-151.0,0.00042888,120]
[400389848,1767493841169,-387.927072,0.00042889,120]
[400389849,1767493841178,-387.927072,0.00042889,120]
[400389850,1767493841188,-387.927072,0.00042889,120]
[400389851,1767493841198,-387.927068,0.00042889,120]
[400389852,1767493841208,-1000.0,0.00042889,14]
[400389853,1767493841217,-242.03055477,0.0004289,15]
[400389854,1767493841227,-24610.64664098,0.00042892,15]
[400389855,1767493841237,-1000.0,0.00042895,14]
[400389856,1767493841249,-150.0,0.00042898,14]
[400389857,1767493841258,-2413.85743027,0.000429,30]
[400389858,1767493841268,-151.0,0.000429,120]
[400389859,1767493841278,-151.0,0.000429,7]
[400389860,1767493841288,-1000.0,0.00042905,14]
[400389861,1767493841297,-150.05401598,0.00042909,40]
[400389862,1767493841307,-1000.0,0.00042909,14]
[400389863,1767493841317,-1000.0,0.00042915,14]
[400389864,1767493841326,-150.0,0.00042918,14]
[400389865,1767493841336,-1000.0,0.00042933,14]
[400389866,1767493841346,-1000.0,0.00042942,14]
[400389867,1767493841356,-1000.0,0.00042944,14]
[400389868,1767493841366,-351.05750787,0.00042962,120]
[400389869,1767493841534,-500.0,0.00042973,10]
[400389870,1767493841544,-500.0,0.00042973,10]
[400389871,1767493841557,-359.08976974,0.00042973,10]
[400389872,1767493841566,-177.50977379,0.00042973,10]
[400389873,1767493841576,-500.98442957,0.00042973,10]
[400389874,1767493841586,-500.0,0.00042973,10]
[400389875,1767493841596,-502.93360052,0.00042973,10]
[400389876,1767493841606,-500.77796136,0.00042973,10]
[400389877,1767493841616,-500.0,0.00042973,10]
[400389878,1767493841626,-500.0,0.00042973,10]
[400389879,1767493841635,-501.74973498,0.00042973,10]
[400389880,1767493841644,-501.05284564,0.00042973,10]
[400389881,1767493841654,-500.87039153,0.00042973,10]
[400389882,1767493841664,-164.1404911,0.00042973,10]
[400389883,1767493841673,-500.0,0.00042973,10]
[400389884,1767493841683,-445.45357048,0.00042973,10]
[400389885,1767493841692,-503.55111914,0.00042973,10]
[400389886,1767493841701,-500.98869312,0.00042973,10]
[400389887,1767493841711,-501.63502972,0.00042973,10]
[400389888,1767493841721,-502.22212111,0.00042973,10]
[400389889,1767493841731,-500.0,0.00042973,10]
[400389890,1767493841740,-500.0,0.00042973,10]
[400389891,1767493841750,-151.0,0.00042973,120]
[400389892,1767493841759,-245.374233,0.00042973,120]
[400389893,1767493841769,-250.0,0.00043,45]
[400389894,1767493841778,-430.0,0.00043,120]
[400389895,1767493841788,-492.24,0.00043,120]
[400389896,1767493841797,-197.0,0.00043,120]
[400389897,1767493841807,-2419.5438922,0.00043,120]
[400389898,1767493841817,-316.0,0.00043,120]
[400389899,1767493841827,-176.00605735,0.00043,120]
[400389900,1767493841836,-500.0,0.00043,120]
[400389901,1767493841846,-255.6,0.00043,120]
[400389902,1767493841855,-299.6,0.00043,120]
[400389903,1767493841865,-68518.91000381,0.00043,120]
[400389904,1767493841878,-851.0,0.00043,120]
[400389905,1767493841926,187.520892,0.00043221,65]
[400389906,1767493841941,-474.60097449,0.00043,120]
[400389907,1767493841972,-1210.65035549,0.00043,120]
[400389908,1767493841986,-2767.26735899,0.00043,120]
[400389909,1767493841998,-4357.13741639,0.00043,120]
[400389910,1767493842009,-343.42901379,0.00043,120]
[400389911,1767493842020,-3196.10937335,0.00043,120]
[400389912,1767493842032,-479.50203109,0.00043,120]
[400389913,1767493842043,-300.7800433,0.00043,120]
[400389917,1767493843023,-1602.30727724,0.00043,120]
[400389919,1767493843079,-270.12809518,0.00043,120]
[400389920,1767493843091,-834.32547979,0.00043,120]
[400389921,1767493843716,-753.11429178,0.00043,120]
[400389922,1767493843728,-3700.92515172,0.00043,120]
[400389923,1767493843769,-165894.81313359,0.00043,120]
[400389924,1767493843778,-2386.43425585,0.00043,15]
[400389925,1767493843787,-233.19418412,0.00043,8]
[400389926,1767493843796,-176.02258027,0.00043,2]
[400389927,1767493843806,-500.0,0.00043014,120]
[400389929,1767493843830,-1819.04172663,0.00043058,2]
[400389931,1767493843841,-176.02258026,0.00043061,2]
[400389933,1767493843851,-153.7919619,0.00043073,60]
[400389935,1767493843861,-152.75971115,0.00043082,14]
[400389937,1767493843871,-150.0,0.00043091,14]
[400389938,1767493843881,-376409.56071381,0.000431,120]
[400389939,1767493843894,-527.50353436,0.000431,120]
[400389940,1767493843906,-388.64047566,0.000431,120]
[400389941,1767493843949,-21.16673789,0.000431,120]
[400389978,1767493845645,-4843.20733325,0.000431,120]
[400389979,1767493845753,-428922.80065795,0.000431,120]
[400389980,1767493845765,-548.15193719,0.000431,120]
[400389981,1767493845778,-265.59999999,0.000431,120]
[400389982,1767493845790,-968.69717496,0.000431,120]
[400389983,1767493845809,-51778.24642005,0.000431,120]
[400389985,1767494053182,971.96847264,0.00043221,120]
[400389986,1767494087609,5491.293838,0.00043221,120]
[400389987,1767494195156,1000.0,0.00043221,60]
[400389991,1767494338299,-151.0,0.00031032,2]
[400389992,1767494338327,-151.0,0.00031032,2]
[400389993,1767494338353,-151.0,0.00031277,2]
[400389994,1767494338380,-151.0,0.00031277,2]
[400389995,1767494338406,-250.0,0.00032005,2]
[400389996,1767494338434,-173.14393296,0.00032737,2]
[400389997,1767494338460,-279.527007,0.00034991,2]
[400389999,1767494347846,151.0,0.00032858,2]
[400390000,1767494347876,151.0,0.00032858,2]
[400390001,1767494364271,151.0,0.00032587,2]
[400390002,1767494364304,151.0,0.00032587,2]
[400390003,1767494368443,150.0,0.00043221,120]
[400390004,1767494380469,151.0,0.00032576,2]
[400390005,1767494380505,151.0,0.00032576,2]
[400390006,1767494396863,151.0,0.00032529,2]
[400390007,1767494397352,151.0,0.00032529,2]
[400390008,1767494410994,500.0,0.00043221,120]
[400390009,1767494411238,500.0,0.00043221,120]
[400390010,1767494411477,518.22442302,0.00043221,120]
[400390011,1767494413740,151.0,0.00032502,2]
[400390012,1767494427457,410.02,0.00020113,2]
[400390013,1767494427680,410.02,0.00021172,2]
[400390014,1767494427873,410.02,0.00022231,2]
[400390015,1767494428074,410.02,0.00023289,2]
[400390016,1767494428279,410.02,0.00024348,2]
[400390017,1767494428472,410.02,0.00025406,2]
[400390018,1767494428668,410.02,0.00026465,2]
[400390019,1767494428873,410.02,0.00027524,2]
[400390020,1767494429109,410.02,0.00028582,2]
[400390021,1767494429319,410.02,0.00029641,2]
[400390022,1767494429514,410.02,0.00030699,2]
[400390023,1767494429724,410.02,0.00031758,2]
[400390024,1767494429926,410.02,0.00032817,2]
[400390025,1767494430141,410.02,0.00033875,2]
[400390026,1767494430168,151.0,0.0003237,2]
[400390027,1767494430341,410.02,0.00034934,2]
[400390028,1767494472260,218.08221142,0.00043221,120]
[400390029,1767494625271,151.0,0.00031106,2]
[400390030,1767494626313,151.0,0.00031106,2]
[400390031,1767494641964,151.0,0.00031084,2]
[400390032,1767494642517,151.0,0.00031084,2]
[400390033,1767494658364,151.0,0.00031084,2]
[400390034,1767494658713,151.0,0.00031084,2]
[400390035,1767494674531,127.02906004,0.00031084,2]
[400390036,1767494674557,23.97093996,0.00031084,2]
[400390037,1767494674842,151.0,0.00031084,2]
[400390038,1767494678751,48830.121,0.00043221,120]
[400390039,1767494747133,-500.0,0.00035167,2]
[400390040,1767494747154,-384.0,0.00035218,3]
[400390041,1767494747175,-300.0,0.00035218,3]
[400390042,1767494747197,-1395.01807132,0.00035219,2]
[400390043,1767494771875,151.0,0.00030925,2]
[400390044,1767494772496,151.0,0.00030925,2]
[400390045,1767494788347,151.0,0.00031064,2]
[400390046,1767494789101,151.0,0.00031073,2]
[400390047,1767494804718,151.0,0.00031512,2]
[400390048,1767494805280,151.0,0.00031512,2]
[400390049,1767494820926,151.0,0.0003106,2]
[400390050,1767494821544,282.6,0.0003106,2]
[400390051,1767494827125,-2590.78728466,0.00035219,2]
[400390052,1767494837394,151.0,0.00031538,2]
[400390053,1767494841128,-271.10737974,0.00035219,2]
[400390054,1767494968353,151.0,0.00031002,2]
[400390055,1767494984857,151.0,0.00031002,2]
[400390065,1767495031738,-1210.11489401,0.00035219,2]
[400390066,1767495031770,-539.95972738,0.00035219,2]
[400390067,1767495031823,-1585.10498767,0.00035219,2]
[400390068,1767495031836,-728.33787106,0.00035219,2]
[400390069,1767495031849,-304.24350998,0.00035219,2]
[400390070,1767495031862,-264.59999972,0.00035219,2]
[400390090,1767495037620,-791.20191441,0.00035219,2]
[400390091,1767495037672,-897.14419948,0.00035219,2]
[400390092,1767495037682,-410.02,0.00035992,2]
[400390093,1767495037693,-740.40739793,0.00036293,2]
[400390094,1767495037726,-386.1649995,0.00036293,2]
[400390095,1767495037780,-1373.42760257,0.00036293,2]
[400390096,1767495037791,-280.0,0.00036382,3]
[400390097,1767495037801,-151.0,0.0003639,14]
[400390098,1767495037811,-150.0,0.00036391,2]
[400390099,1767495037821,-211.45365894,0.00036392,15]
[400390100,1767495037831,-500.0,0.00036392,15]
[400390101,1767495037841,-299.85545412,0.00036392,15]
[400390102,1767495037851,-284.57269538,0.00036392,15]
[400390103,1767495037860,-600.34993734,0.00036392,15]
[400390104,1767495037870,-370.27225041,0.00036392,15]
[400390105,1767495037883,-129.72774959,0.00036392,15]
[400390106,1767495037893,-500.0,0.00036392,15]
[400390107,1767495037903,-332.68268869,0.00036392,15]
[400390108,1767495037913,-450.58749299,0.00036392,15]
[400390109,1767495037923,-614.38108556,0.00036392,7]
[400390110,1767495037933,-500.0,0.00036392,15]
[400390111,1767495037943,-500.0,0.00036392,15]
[400390112,1767495037954,-500.0,0.00036392,15]
[400390113,1767495037964,-109.44157245,0.00036392,15]
[400390114,1767495037976,-141.27779058,0.00036392,15]
[400390115,1767495037990,-500.0,0.00036392,15]
[400390116,1767495038002,-500.0,0.00036392,15]
[400390117,1767495038013,-500.0,0.00036392,15]
[400390118,1767495038024,-500.0,0.00036392,15]
[400390119,1767495038040,-481.98661183,0.00036392,15]
[400390121,1767495038051,-500.0,0.00036392,15]
[400390123,1767495038061,-134.02455655,0.00036392,15]
[400390125,1767495038076,-365.97544345,0.00036392,15]
[400390127,1767495038085,-500.0,0.00036392,15]
[400390129,1767495038095,-372.98246751,0.00036392,15]
[400390131,1767495038108,-127.01753249,0.00036392,15]
[400390133,1767495038118,-230.94395742,0.00036392,15]
[400390136,1767495038136,-269.05604258,0.00036392,15]
[400390138,1767495038146,-471.98246751,0.00036392,15]
[400390140,1767495038158,-28.01753249,0.00036392,15]
[400390141,1767495038167,-500.0,0.00036392,15]
[400390142,1767495038178,-500.0,0.00036392,15]
[400390143,1767495038192,-225.01202598,0.00036392,15]
[400390144,1767495038204,-274.98797402,0.00036392,15]
[400390145,1767495038214,-500.0,0.00036392,15]
[400390146,1767495038225,-500.0,0.00036392,15]
[400390147,1767495038236,-153.304,0.00036392,45]
[400390148,1767495038246,-296.72220267,0.00036392,45]
[400390149,1767495038259,-367.84379733,0.00036392,45]
[400390150,1767495038269,-202.11,0.00036392,14]
[400390151,1767495038281,-9946.68913684,0.00036393,2]
[400390152,1767495038294,-824.63668461,0.00036393,2]
[400390153,1767495038307,-1103.16022683,0.00036393,2]
[400390156,1767495039671,-1729.9999,0.00036393,2]
[400390161,1767495039723,-1516.79057988,0.00036393,2]
[400390162,1767495039735,-1649.6059058,0.00036393,2]
[400390163,1767495039882,-262.43585575,0.00036393,2]
[400390164,1767495039988,-843.40981153,0.00036393,2]
[400390165,1767495040095,-395.92311807,0.00036393,2]
[400390166,1767495040107,-4741.7047716,0.00036393,2]
[400390167,1767495040118,-321.40733406,0.00036393,2]
[400390168,1767495040130,-351.99034705,0.00036393,2]
[400390169,1767495040142,-301.10036539,0.00036393,2]
[400390170,1767495040154,-1282.45402174,0.00036393,2]
[400390171,1767495040165,-315.32000001,0.00036393,2]
[400390193,1767495043493,-508.70759689,0.00036393,2]
[400390194,1767495044329,-20354.20088605,0.00036393,2]
[400390199,1767495045748,-5741.350374,0.00036393,2]
[400390200,1767495046010,-286.55758984,0.00036393,2]
[400390207,1767495141107,500.0,0.00043221,120]
[400390208,1767495141333,500.0,0.00043221,120]
[400390209,1767495141589,500.0,0.00043221,120]
[400390210,1767495141811,500.0,0.00043221,120]
[400390211,1767495142043,500.0,0.00043221,120]
[400390212,1767495142278,500.0,0.00043221,120]
[400390213,1767495142530,500.0,0.00043221,120]
[400390214,1767495142747,500.0,0.00043221,120]
[400390215,1767495142975,284.90693416,0.00043221,120]
[400390216,1767495155213,151.35,0.00029644,2]
[400390217,1767495171186,151.0,0.00029984,2]
[400390218,1767495177987,151.0,0.00030051,2]
[400390219,1767495187568,151.0,0.00030054,2]
[400390220,1767495192223,253.71,0.00013699,2]
[400390221,1767495192354,253.71,0.00020187,2]
[400390222,1767495192546,253.71,0.00026676,2]
[400390223,1767495194198,151.0,0.00030013,2]
[400390224,1767495209916,302.69216107,0.00043221,60]
[400390225,1767495210615,151.0,0.00029959,2]
[400390226,1767495219409,227.2517329,0.00019082,2]
[400390227,1767495227033,151.0,0.00029943,2]
[400390228,1767495243189,151.0,0.00029943,2]
[400390229,1767495312829,500.0,0.00043221,120]
[400390230,1767495312963,500.0,0.00043221,120]
[400390231,1767495313236,387.48585441,0.00043221,120]
[400390232,1767495323552,151.0,0.00029721,2]
[400390233,1767495333583,9000.0,0.00032877,120]
[400390234,1767495340028,151.0,0.00029721,2]
[400390235,1767495348513,1023.53,0.00032877,120]
[400390236,1767495357090,151.0,0.00029693,2]
[400390238,1767495373477,151.0,0.00029842,2]
[400390239,1767495389735,151.0,0.00029842,2]
[400390240,1767495405969,151.0,0.00029842,2]
[400390241,1767495455789,151.0,0.00029812,2]
[400390242,1767495488304,151.0,0.00029872,2]
[400390243,1767495504830,151.0,0.000303,2]
[400390244,1767495512999,162.09076617,0.00043221,120]
[400390245,1767495521267,151.0,0.00030203,2]
[400390246,1767495537933,151.0,0.00030203,2]
[400390247,1767495554309,151.0,0.00030202,2]
[400390248,1767495570695,151.0,0.00030478,2]
[400390249,1767495587109,151.0,0.00030416,2]
[400390250,1767495610905,-253.71,0.00033165,2]
[400390251,1767495610932,-1000.0,0.00035513,2]
[400390252,1767495610963,-1228.73,0.00035579,2]
[400390253,1767495610990,-200.0,0.00035678,2]
[400390254,1767495611019,-301.79,0.00035856,30]
[400390255,1767495611044,-2783.25,0.00035856,2]
[400390256,1767495611071,-297.29857397,0.00036093,24]
[400390257,1767495611097,-151.0,0.0003619,14]
[400390258,1767495611125,-1600.0,0.00036191,3]
[400390259,1767495611152,-549.20088677,0.00036192,15]
[400390260,1767495611183,-209.89881788,0.00036192,15]
[400390261,1767495611216,-500.0,0.00036192,15]
[400390262,1767495611246,-500.0,0.00036192,15]
[400390263,1767495611278,-500.0,0.00036192,15]
[400390264,1767495611306,-500.0,0.00036192,15]
[400390265,1767495611338,-633.56352578,0.00036192,15]
[400390266,1767495611368,-338.01401099,0.00036192,15]
[400390267,1767495611395,-176.45502805,0.00036192,2]
[400390268,1767495611423,-688.0,0.00036192,2]
[400390269,1767495611455,-12589.08915656,0.00036193,2]
[400390270,1767495612713,-25000.0,0.00036193,2]
[400390271,1767495613485,-25000.0,0.00036193,2]
[400390272,1767495614407,-25000.0,0.00036193,2]
[400390273,1767495615804,-25000.0,0.00036193,2]
[400390274,1767495652172,151.0,0.00030447,2]
[400390275,1767495668678,151.0,0.00030447,2]
[400390276,1767495685312,151.0,0.00030235,2]
[400390277,1767495701568,151.0,0.00030277,2]
[400390278,1767495864897,153.240552,0.00043224,65]
[400390279,1767495880093,151.0,0.00030241,2]
[400390280,1767495896890,151.0,0.00030241,2]
[400390281,1767495960992,234.0,0.00043224,120]
[400390284,1767495978566,151.0,0.00030168,2]
[400390285,1767495994643,151.0,0.00030079,2]
[400390286,1767496015117,-415.61544134,0.00033056,2]
[400390287,1767496029473,-2240.17046284,0.00033056,2]
[400390288,1767496043132,-259.07872847,0.00033056,2]
[400390289,1767496043867,151.0,0.00030022,2]
[400390290,1767496060062,151.0,0.00030022,2]
[400390291,1767496079987,203.0,0.00043224,60]
[400390292,1767496083900,227.61853446,0.000325,2]
[400390295,1767496156772,151.0,0.00029687,2]
[400390296,1767496173132,151.0,0.00029687,2]
[400390298,1767496189629,151.0,0.00029687,2]
[400390307,1767496231954,-490.61536735,0.00033056,2]
[400390308,1767496231964,-265.16513314,0.00034344,2]
[400390309,1767496231974,-751.0,0.0003532,3]
[400390310,1767496231987,-1195.46937356,0.00035321,2]
[400390311,1767496231998,-1135.57030507,0.00035321,2]
[400390312,1767496232010,-2940.91019309,0.00035321,2]
[400390325,1767496237912,-18231.99999998,0.00035321,2]
[400390326,1767496237965,-11225.0001283,0.00035321,2]
[400390327,1767496237978,-779.03,0.00035322,2]
[400390328,1767496237988,-500.0,0.00035633,2]
[400390329,1767496237998,-282.74785451,0.00035895,2]
[400390330,1767496238007,-341.50808204,0.00036,3]
[400390331,1767496238017,-2500.0,0.00036093,2]
[400390332,1767496238026,-154.7,0.00036093,44]
[400390333,1767496238036,-824.939,0.00036093,44]
[400390334,1767496238046,-3018.93296032,0.00036093,2]
[400390335,1767496238056,-2503.83633824,0.00036093,2]
[400390336,1767496238066,-233.76808948,0.00036143,14]
[400390338,1767496238076,-181.50705842,0.00036145,15]
[400390340,1767496238086,-42007.26776338,0.00036146,2]
[400390342,1767496238096,-478.38900651,0.00036192,120]
[400390343,1767496238106,-500.0,0.00036192,2]
[400390344,1767496238116,-500.0,0.00036192,2]
[400390345,1767496238126,-335.32717823,0.00036192,2]
[400390347,1767496238136,-500.0,0.00036192,30]
[400390349,1767496238146,-500.0,0.00036192,30]
[400390351,1767496238156,-500.0,0.00036192,30]
[400390354,1767496238167,-507.98581605,0.00036192,30]
[400390355,1767496238176,-500.0,0.00036192,120]
[400390357,1767496238186,-170.38289932,0.00036192,120]
[400390360,1767496238196,-249953.62472512,0.00036193,2]
[400390390,1767496238487,151.0,0.00029911,2]
[400390413,1767496239810,-455.96,0.00036193,2]
[400390414,1767496239822,-509.8820025,0.00036193,2]
[400390415,1767496239875,-2708.72489452,0.00036193,2]
[400390416,1767496239971,-116516.0884428,0.00036193,2]
[400390470,1767496244621,-316.47033406,0.00036193,2]
[400390471,1767496244633,-313.89,0.00036193,2]
[400390473,1767496244645,-1822.8,0.00036193,2]
[400390505,1767496245863,-2212.43758769,0.00036193,2]
[400390507,1767496245913,-959.965783,0.00036193,2]
[400390508,1767496245926,-573.95549409,0.00036193,2]
[400390509,1767496245968,-394.9025,0.00036193,2]
[400390510,1767496245979,-1141.6,0.00036193,2]
[400390511,1767496245991,-400.23705092,0.00036193,2]
[400390512,1767496246022,-727.39816523,0.00036193,2]
[400390513,1767496246033,-8965.06190794,0.00036193,2]
[400390515,1767496246131,-39753.03809893,0.00036193,2]
[400390516,1767496246143,-1869.83992487,0.00036193,2]
[400390517,1767496246154,-362.84828034,0.00036193,2]
[400390533,1767496255358,151.0,0.00030172,2]